{"text_format":"1","workbook":"xlsx","n_sheets":1,"sheets":["Taul1"],"not_rendered":{"charts":0,"images":0,"macros":1,"external_links":0,"defined_names":1,"comments":0,"pivot_tables":0},"unopened":[],"bounds":{"document_bytes":16777216,"sheet_cells":100000,"rows_first":2000,"rows_last":500,"rows_between":2000,"halvings":0,"cell_chars":16384,"cell_head_chars":4096},"cells_cut":0,"cells_raw":0,"read":"whole","date_system":"1900"}

{"sheet":"Taul1","index":0,"n_rows":64,"n_cols":23,"rows_kept":64,"cut":false,"hidden":false,"merged":[]}
["Nimi","NimiJaSyntymä","Pisteet yht.","Piste KA / juostu kilpailu","Kilpailu","Kilpailija","Luokka","Pisteet","Johtajana","Kaikki päivät","Kilpailu","Kilpailija","Luokka","Pisteet","Johtajana","Kaikki päivät","Syntymäaika","Sukupuoli","Paino kg","Rotu","Sukutaulu",null,"Lisätiedot"]
["Olga","Olga43905",395.63883514226131,{"$f":"AVERAGE(IF(H$1:PP$1=\"Pisteet\",H2:PP2))","v":197.81941757113066},"Jämin Syyskisa","Sonja Heinonen","DR8",194.41112321444962,"Kyllä","Kyllä","Jämin Syys-SM","Pasi Heinonen","DR8",201.2277119278117,"Kyllä","Kyllä","2020-03-15","narttu",23,"x",{"$f":"HYPERLINK(V2,\"Sukutaulu\")","v":"Sukutaulu"},"https://www.trekkhundregisteret.no/dog/65956-olga-sonja-pasi-heinonen/","Näytä tiedot"]
["Sauli","Sauli44798",395.63883514226131,{"$f":"AVERAGE(IF(H$1:PP$1=\"Pisteet\",H3:PP3))","v":197.81941757113066},"Jämin Syyskisa","Sonja Heinonen","DR8",194.41112321444962,"Kyllä","Kyllä","Jämin Syys-SM","Pasi Heinonen","DR8",201.2277119278117,"Kyllä","Kyllä","2022-08-25","uros",24,"x","Sukutaulu","https://www.trekkhundregisteret.no/dog/65961-sauli-sonja-pasi-heinonen/","Näytä tiedot"]
["Sipsi","Sipsi44798",395.63883514226131,{"$f":"AVERAGE(IF(H$1:PP$1=\"Pisteet\",H4:PP4))","v":197.81941757113066},"Jämin Syyskisa","Sonja Heinonen","DR8",194.41112321444962,"Ei","Kyllä","Jämin Syys-SM","Pasi Heinonen","DR8",201.2277119278117,"Ei","Kyllä","2022-08-25","narttu",22,"x","Sukutaulu","https://www.trekkhundregisteret.no/dog/65962-sipsi-sonja-pasi-heinonen/","Näytä tiedot"]
["Taimi","Taimi45293",395.63883514226131,{"$f":"AVERAGE(IF(H$1:PP$1=\"Pisteet\",H5:PP5))","v":197.81941757113066},"Jämin Syyskisa","Sonja Heinonen","DR8",194.41112321444962,"Ei","Kyllä","Jämin Syys-SM","Pasi Heinonen","DR8",201.2277119278117,"Ei","Kyllä","2024-01-02","narttu",24,"x","Sukutaulu","https://www.trekkhundregisteret.no/dog/65970-taimi-sonja-pasi-heinonen/","Näytä tiedot"]
["Tuksu","Tuksu45293",395.63883514226131,{"$f":"AVERAGE(IF(H$1:PP$1=\"Pisteet\",H6:PP6))","v":197.81941757113066},"Jämin Syyskisa","Sonja Heinonen","DR8",194.41112321444962,"Ei","Kyllä","Jämin Syys-SM","Pasi Heinonen","DR8",201.2277119278117,"Ei","Kyllä","2024-01-02","narttu",24,"x","Sukutaulu","https://www.trekkhundregisteret.no/dog/65969-tuksu-sonja-pasi-heinonen/","Näytä tiedot"]
["Ahto","Ahto44390",394.95438643338912,{"$f":"AVERAGE(IF(H$1:PP$1=\"Pisteet\",H7:PP7))","v":197.47719321669456},"Jämin Syyskisa","Ville Rakkolainen","DR8",196.76846407729079,"Ei","Kyllä","Jämin Syys-SM","Ville Rakkolainen","DR8",198.18592235609833,"Ei","Kyllä","2021-07-13","uros",29,"x","Sukutaulu","https://www.trekkhundregisteret.no/dog/68157-ahto-joonas-elena-kallio/","Näytä tiedot"]
["Fun Racing Origo","Fun Racing Origo44003",394.95438643338912,{"$f":"AVERAGE(IF(H$1:PP$1=\"Pisteet\",H8:PP8))","v":197.47719321669456},"Jämin Syyskisa","Ville Rakkolainen","DR8",196.76846407729079,"Kyllä","Kyllä","Jämin Syys-SM","Ville Rakkolainen","DR8",198.18592235609833,"Kyllä","Kyllä","2020-06-21","narttu",23,"x","Sukutaulu","https://www.trekkhundregisteret.no/dog/52643-fun-racing-origo-hege-ingebrgtsen/","Näytä tiedot"]
["Nuppu","Nuppu45095",394.95438643338912,{"$f":"AVERAGE(IF(H$1:PP$1=\"Pisteet\",H9:PP9))","v":197.47719321669456},"Jämin Syyskisa","Ville Rakkolainen","DR8",196.76846407729079,"Kyllä","Kyllä","Jämin Syys-SM","Ville Rakkolainen","DR8",198.18592235609833,"Kyllä","Kyllä","2023-06-18","narttu",23,"x","Sukutaulu","https://www.trekkhundregisteret.no/dog/68159-nuppu-joonas-elena-kallio/","Näytä tiedot"]
["Pate","Pate45095",394.95438643338912,{"$f":"AVERAGE(IF(H$1:PP$1=\"Pisteet\",H10:PP10))","v":197.47719321669456},"Jämin Syyskisa","Ville Rakkolainen","DR8",196.76846407729079,"Ei","Kyllä","Jämin Syys-SM","Ville Rakkolainen","DR8",198.18592235609833,"Ei","Kyllä","2023-06-18","uros",29,"x","Sukutaulu","https://www.trekkhundregisteret.no/dog/68160-pate-joonas-elena-kallio/","Näytä tiedot"]
["Powerline Olli","Powerline Olli43905",394.95438643338912,{"$f":"AVERAGE(IF(H$1:PP$1=\"Pisteet\",H11:PP11))","v":197.47719321669456},"Jämin Syyskisa","Ville Rakkolainen","DR8",196.76846407729079,"Ei","Kyllä","Jämin Syys-SM","Ville Rakkolainen","DR8",198.18592235609833,"Ei","Kyllä","2020-03-15","uros",26,"x","Sukutaulu","https://www.trekkhundregisteret.no/dog/68158-olli-sonja-pasi-heinonen/","Näytä tiedot"]
["Powerline Samppa","Powerline Samppa44798",394.95438643338912,{"$f":"AVERAGE(IF(H$1:PP$1=\"Pisteet\",H12:PP12))","v":197.47719321669456},"Jämin Syyskisa","Ville Rakkolainen","DR8",196.76846407729079,"Ei","Kyllä","Jämin Syys-SM","Ville Rakkolainen","DR8",198.18592235609833,"Ei","Kyllä","2022-08-25","uros",26,"x","Sukutaulu","https://www.trekkhundregisteret.no/dog/67497-samppa-sonja-pasi-heinonen/","Näytä tiedot"]
["Rane","Rane45114",394.95438643338912,{"$f":"AVERAGE(IF(H$1:PP$1=\"Pisteet\",H13:PP13))","v":197.47719321669456},"Jämin Syyskisa","Ville Rakkolainen","DR8",196.76846407729079,"Ei","Kyllä","Jämin Syys-SM","Ville Rakkolainen","DR8",198.18592235609833,"Ei","Kyllä","2023-07-07","uros",29,"x","Sukutaulu","https://www.trekkhundregisteret.no/dog/68161-rane-nina-teegen/","Näytä tiedot"]
["HappyHound Remus","HappyHound Remus44377",378.80272902567344,{"$f":"AVERAGE(IF(H$1:PP$1=\"Pisteet\",H14:PP14))","v":189.40136451283672},"Jämin Syyskisa","Tiina Hakala","DR4",186.69283281638718,"Kyllä","Kyllä","Jämin Syys-SM","Tiina Hakala","DR4",192.10989620928629,"Kyllä","Kyllä","2021-06-30","uros",33,"x","Sukutaulu","https://www.trekkhundregisteret.no/dog/56010-happy-hound-remus-tiina-hakala/","Näytä tiedot"]
["HappyHound Romulus","HappyHound Romulus44377",378.80272902567344,{"$f":"AVERAGE(IF(H$1:PP$1=\"Pisteet\",H15:PP15))","v":189.40136451283672},"Jämin Syyskisa","Tiina Hakala","DR4",186.69283281638718,"Ei","Kyllä","Jämin Syys-SM","Tiina Hakala","DR4",192.10989620928629,"Ei","Kyllä","2021-06-30","uros",35,"x","Sukutaulu","https://www.trekkhundregisteret.no/dog/56009-happy-hound-romulus-tiina-hakala/","Näytä tiedot"]
["HappyHound Rosvo","HappyHound Rosvo44377",378.80272902567344,{"$f":"AVERAGE(IF(H$1:PP$1=\"Pisteet\",H16:PP16))","v":189.40136451283672},"Jämin Syyskisa","Tiina Hakala","DR4",186.69283281638718,"Kyllä","Kyllä","Jämin Syys-SM","Tiina Hakala","DR4",192.10989620928629,"Kyllä","Kyllä","2021-06-30","uros",32,"x","Sukutaulu","https://www.trekkhundregisteret.no/dog/56007-happy-hound-rosvo-tiina-hakala/","Näytä tiedot"]
["Albus","Albus44390",362.80957303893456,{"$f":"AVERAGE(IF(H$1:PP$1=\"Pisteet\",H17:PP17))","v":181.40478651946728},"Jämin Syyskisa","Michela Leppänen","DS2",161.58186111112286,"Kyllä","Kyllä","Jämin Syys-SM","Pasi Heinonen","DR8",201.2277119278117,"Ei","Kyllä","2021-07-13","uros",24,"x","Sukutaulu","https://www.trekkhundregisteret.no/dog/65965-albus-joonas-elena-kallio/","Näytä tiedot"]
["Soma","Soma44798",362.80957303893456,{"$f":"AVERAGE(IF(H$1:PP$1=\"Pisteet\",H18:PP18))","v":181.40478651946728},"Jämin Syyskisa","Michela Leppänen","DS2",161.58186111112286,"Kyllä","Kyllä","Jämin Syys-SM","Pasi Heinonen","DR8",201.2277119278117,"Ei","Kyllä","2022-08-25","narttu",23,"x","Sukutaulu","https://www.trekkhundregisteret.no/dog/67530-soma-sonja-pasi-heinonen/","Näytä tiedot"]
["Hietasen Taika","Hietasen Taika45017",346.49269068445989,{"$f":"AVERAGE(IF(H$1:PP$1=\"Pisteet\",H19:PP19))","v":173.24634534222994},"Jämin Syyskisa","Milli Rakkolainen","DS1Y/J",148.30676832836156,"Kyllä","Kyllä","Jämin Syys-SM","Ville Rakkolainen","DR8",198.18592235609833,"Ei","Kyllä","2023-04-01","narttu",29,"x","Sukutaulu","https://www.trekkhundregisteret.no/dog/60921-hietasen-taika-jutta-tuukka-turkka/","Näytä tiedot"]
["Sonsonin Aikamoinen Eppu","Sonsonin Aikamoinen Eppu43668",334.62679518913876,{"$f":"AVERAGE(IF(H$1:PP$1=\"Pisteet\",H20:PP20))","v":167.31339759456938},"Jämin Syyskisa","Johanna Pelli","DR8",169.42629754898059,"Ei","Kyllä","Jämin Syys-SM","Lauri Kivioja","DR8",165.20049764015818,"Ei","Kyllä","2019-07-22","uros",26,"siperianhusky ","Sukutaulu","https://jalostus.kennelliitto.fi/frmKoira.aspx?RekNo=FI45124%2F19&R=270","Näytä tiedot"]
["Sonsonin Aikamoinen Möykky","Sonsonin Aikamoinen Möykky43668",334.62679518913876,{"$f":"AVERAGE(IF(H$1:PP$1=\"Pisteet\",H21:PP21))","v":167.31339759456938},"Jämin Syyskisa","Johanna Pelli","DR8",169.42629754898059,"Kyllä","Kyllä","Jämin Syys-SM","Lauri Kivioja","DR8",165.20049764015818,"Kyllä","Kyllä","2019-07-22","uros",26.5,"siperianhusky ","Sukutaulu","https://jalostus.kennelliitto.fi/frmKoira.aspx?RekNo=FI45125%2F19&R=270","Näytä tiedot"]
["Pinkkisan's Funny Hachiko ","Pinkkisan's Funny Hachiko 43350",334.62679518913876,{"$f":"AVERAGE(IF(H$1:PP$1=\"Pisteet\",H22:PP22))","v":167.31339759456938},"Jämin Syyskisa","Johanna Pelli","DR8",169.42629754898059,"Ei","Kyllä","Jämin Syys-SM","Lauri Kivioja","DR8",165.20049764015818,"Ei","Kyllä","2018-09-07","uros",23,"siperianhusky ","Sukutaulu","https://jalostus.kennelliitto.fi/frmKoira.aspx?RekNo=FI58292/20&R=270","Näytä tiedot"]
["McAhon Vandaali","McAhon Vandaali45269",334.62679518913876,{"$f":"AVERAGE(IF(H$1:PP$1=\"Pisteet\",H23:PP23))","v":167.31339759456938},"Jämin Syyskisa","Johanna Pelli","DR8",169.42629754898059,"Ei","Kyllä","Jämin Syys-SM","Lauri Kivioja","DR8",165.20049764015818,"Ei","Kyllä","2023-12-09","narttu",21,"siperianhusky ","Sukutaulu","https://jalostus.kennelliitto.fi/frmKoira.aspx?RekNo=FI12756/24&R=270","Näytä tiedot"]
["Hippi (Jippi23)","Hippi (Jippi23)45095",297.71545753081546,{"$f":"AVERAGE(IF(H$1:PP$1=\"Pisteet\",H24:PP24))","v":148.85772876540773},"Jämin Syyskisa","Sonja Heinonen","DR8",194.41112321444962,"Ei","Ei","Jämin Syys-SM","Pasi Heinonen","DR8",103.30433431636585,"Ei","Ei","2023-06-18","narttu",22,"x","Sukutaulu","https://www.trekkhundregisteret.no/dog/65964-jippi23-joonas-elena-kallio/","Näytä tiedot"]
["Huruhukan Alwari Tuohitorvi ","Huruhukan Alwari Tuohitorvi 44283",280.11168958580095,{"$f":"AVERAGE(IF(H$1:PP$1=\"Pisteet\",H25:PP25))","v":140.05584479290047},"Jämin Syyskisa","Josefiina Santala","DR4",136.44931177008885,"Kyllä","Kyllä","Jämin Syys-SM","Josefiina Santala","DR4 ",143.66237781571209,"Kyllä","Kyllä","2021-03-28","uros",20.5,"siperianhusky ","Sukutaulu","https://jalostus.kennelliitto.fi/frmKoira.aspx?RekNo=FI26353/21&R=270","Näytä tiedot"]
["Loitsuttu Anyon ","Loitsuttu Anyon 44771",280.11168958580095,{"$f":"AVERAGE(IF(H$1:PP$1=\"Pisteet\",H26:PP26))","v":140.05584479290047},"Jämin Syyskisa","Josefiina Santala","DR4",136.44931177008885,"Ei","Kyllä","Jämin Syys-SM","Josefiina Santala","DR4 ",143.66237781571209,"Ei","Kyllä","2022-07-29","uros",21.5,"siperianhusky ","Sukutaulu","https://jalostus.kennelliitto.fi/frmKoira.aspx?RekNo=FI53004/22&R=270","Näytä tiedot"]
["Lumikiisan Taitava Narnia ","Lumikiisan Taitava Narnia 45134",280.11168958580095,{"$f":"AVERAGE(IF(H$1:PP$1=\"Pisteet\",H27:PP27))","v":140.05584479290047},"Jämin Syyskisa","Josefiina Santala","DR4",136.44931177008885,"Ei","Kyllä","Jämin Syys-SM","Josefiina Santala","DR4 ",143.66237781571209,"Ei","Kyllä","2023-07-27","uros",27,"siperianhusky ","Sukutaulu","https://jalostus.kennelliitto.fi/frmKoira.aspx?RekNo=FI46645/23&R=270","Näytä tiedot"]
["Lumikiisan Taitava Titania ","Lumikiisan Taitava Titania 45134",280.11168958580095,{"$f":"AVERAGE(IF(H$1:PP$1=\"Pisteet\",H28:PP28))","v":140.05584479290047},"Jämin Syyskisa","Josefiina Santala","DR4",136.44931177008885,"Kyllä","Kyllä","Jämin Syys-SM","Josefiina Santala","DR4 ",143.66237781571209,"Kyllä","Kyllä","2023-07-27","uros",24,"siperianhusky ","Sukutaulu","https://jalostus.kennelliitto.fi/frmKoira.aspx?RekNo=FI46648/23&R=270","Näytä tiedot"]
["Villiviimas Fantastinen Nala","Villiviimas Fantastinen Nala44352",259.64583078876535,{"$f":"AVERAGE(IF(H$1:PP$1=\"Pisteet\",H29:PP29))","v":129.82291539438268},"Jämin Syyskisa","Camilla Backman-Koskinen","DS2",124.69109986780626,"Kyllä","Kyllä","Jämin Syys-SM","Camilla Backman-Koskinen","DS2",134.95473092095909,"Kyllä","Kyllä","2021-06-05","narttu",21,"siperianhusky ","Sukutaulu","https://jalostus.kennelliitto.fi/frmKoira.aspx?RekNo=FI59166%2F21&R=270","Näytä tiedot"]
["Pinkkisan's Agent Triple X","Pinkkisan's Agent Triple X44104",257.56803940776399,{"$f":"AVERAGE(IF(H$1:PP$1=\"Pisteet\",H30:PP30))","v":128.784019703882},"Jämin Syyskisa","Johanna Pelli","DR8",169.42629754898059,"Kyllä","Kyllä","Jämin Syys-SM","Lauri Kivioja","DR8",88.141741858783405,"Kyllä","Ei","2020-09-30","narttu",19,"siperianhusky ","Sukutaulu","https://jalostus.kennelliitto.fi/frmKoira.aspx?RekNo=FI58252/20&R=270","Näytä tiedot"]
["Fun Racing Niitti","Fun Racing Niitti43964",196.76846407729079,{"$f":"AVERAGE(IF(H$1:PP$1=\"Pisteet\",H31:PP31))","v":98.384232038645393},"Jämin Syyskisa","Ville Rakkolainen","DR8",196.76846407729079,"Ei","Kyllä",null,null,null,null,null,null,"2020-05-13","narttu",23,"x","Sukutaulu","https://www.trekkhundregisteret.no/dog/52226-fun-racing-niitti-hege-ingebrgtsen/","Näytä tiedot"]
["HappyHound Rinsessa","HappyHound Rinsessa44377",192.10989620928629,{"$f":"AVERAGE(IF(H$1:PP$1=\"Pisteet\",H32:PP32))","v":96.054948104643145},null,null,null,null,null,null,"Jämin Syys-SM","Tiina Hakala","DR4",192.10989620928629,"Ei","Kyllä","2021-06-30","narttu",30,"x","Sukutaulu","https://www.trekkhundregisteret.no/dog/56011-happy-hound-rinsessa-tiina-hakala/","Näytä tiedot"]
["Cela","Cela43565",182.69227133645552,{"$f":"AVERAGE(IF(H$1:PP$1=\"Pisteet\",H33:PP33))","v":91.34613566822776},null,null,null,null,null,null,"Jämin Syys-SM","Pekka Niemi","DS2",182.69227133645552,"Kyllä","Kyllä","2019-04-10","narttu",25,"lyhytkarvainen saksanseisoja ","Sukutaulu","https://www.trekkhundregisteret.no/dog/66978-ciri-cirin-dalveniehku-ciri-cirin/","Näytä tiedot"]
["Mezcal","Mezcal44670",182.69227133645552,{"$f":"AVERAGE(IF(H$1:PP$1=\"Pisteet\",H34:PP34))","v":91.34613566822776},null,null,null,null,null,null,"Jämin Syys-SM","Pekka Niemi","DS2",182.69227133645552,"Kyllä","Kyllä","2022-04-19","narttu",28,"x",{"$f":"HYPERLINK(V34,\"Sukutaulu\")","v":"Sukutaulu"},"https://www.trekkhundregisteret.no/dog/58133-mezcal-veronika-navratilova-and-vaclav-vancura/","Näytä tiedot"]
["Termagant's Eclipse ","Termagant's Eclipse 45223",178.10042083962941,{"$f":"AVERAGE(IF(H$1:PP$1=\"Pisteet\",H35:PP35))","v":89.050210419814704},null,null,null,null,null,null,"Jämin Syys-SM","Janica Kindt","DR4",178.10042083962941,"Ei","Kyllä","2023-10-24","uros",35,"lyhytkarvainen saksanseisoja ","Sukutaulu","https://jalostus.kennelliitto.fi/frmKoira.aspx?RekNo=FI51469%2F23&R=119","Näytä tiedot"]
["Jehu","Jehu43910",166.11698472759269,{"$f":"AVERAGE(IF(H$1:PP$1=\"Pisteet\",H36:PP36))","v":83.058492363796347},null,null,null,null,null,null,"Jämin Syys-SM","Tuomas Notko","DS2 ",166.11698472759269,"Kyllä","Kyllä","2020-03-20","uros",31,"x","Sukutaulu","https://www.trekkhundregisteret.no/dog/55386-jehu-jenni-kreivi/","Näytä tiedot"]
["Liekki (Salama) ","Liekki (Salama) 42222",166.11698472759269,{"$f":"AVERAGE(IF(H$1:PP$1=\"Pisteet\",H37:PP37))","v":83.058492363796347},null,null,null,null,null,null,"Jämin Syys-SM","Tuomas Notko","DS2 ",166.11698472759269,"Kyllä","Kyllä","2015-08-06","uros",25,"x","Sukutaulu","https://www.trekkhundregisteret.no/dog/43889-thedogriders-yur-salama-samuli-nissinen/","Näytä tiedot"]
["ALKUVOIMAN HARLEY QUINN","ALKUVOIMAN HARLEY QUINN44721",160.83333681305805,{"$f":"AVERAGE(IF(H$1:PP$1=\"Pisteet\",H38:PP38))","v":80.416668406529027},"Jämin Syyskisa","Milla Gröndahl","DR4",160.83333681305805,"Kyllä","Kyllä",null,null,null,null,null,null,"2022-06-09","narttu",17,"siperianhusky ","Sukutaulu","https://jalostus.kennelliitto.fi/frmKoira.aspx?RekNo=FI41523%2F22&R=270","Näytä tiedot"]
["ALKUVOIMAN THE JOKER","ALKUVOIMAN THE JOKER44721",160.83333681305805,{"$f":"AVERAGE(IF(H$1:PP$1=\"Pisteet\",H39:PP39))","v":80.416668406529027},"Jämin Syyskisa","Milla Gröndahl","DR4",160.83333681305805,"Kyllä","Kyllä",null,null,null,null,null,null,"2022-06-09","uros",26,"siperianhusky ","Sukutaulu","https://jalostus.kennelliitto.fi/frmKoira.aspx?RekNo=FI41524%2F22&R=270","Näytä tiedot"]
["ALKUVOIMAN THE RIDDLER","ALKUVOIMAN THE RIDDLER44721",160.83333681305805,{"$f":"AVERAGE(IF(H$1:PP$1=\"Pisteet\",H40:PP40))","v":80.416668406529027},"Jämin Syyskisa","Milla Gröndahl","DR4",160.83333681305805,"Ei","Kyllä",null,null,null,null,null,null,"2022-06-09","uros",27,"siperianhusky ","Sukutaulu","https://jalostus.kennelliitto.fi/frmKoira.aspx?RekNo=FI41525%2F22&R=270","Näytä tiedot"]
["ALKUVOIMAN TWO-FACE","ALKUVOIMAN TWO-FACE44721",160.83333681305805,{"$f":"AVERAGE(IF(H$1:PP$1=\"Pisteet\",H41:PP41))","v":80.416668406529027},"Jämin Syyskisa","Milla Gröndahl","DR4",160.83333681305805,"Ei","Kyllä",null,null,null,null,null,null,"2022-06-09","uros",25,"siperianhusky ","Sukutaulu","https://jalostus.kennelliitto.fi/frmKoira.aspx?RekNo=FI41527%2F22&R=270","Näytä tiedot"]
["Fun racing Jagger","Fun racing Jagger43243",156.19237127917702,{"$f":"AVERAGE(IF(H$1:PP$1=\"Pisteet\",H42:PP42))","v":78.096185639588512},"Jämin Syyskisa","Ilona Suutari","DS2",156.19237127917702,"Kyllä","Kyllä",null,null,null,null,null,null,"2018-05-23","uros",24,"x","Sukutaulu","https://www.trekkhundregisteret.no/dog/68271-jagger-unknown-breeder/","Näytä tiedot"]
["Särmä","Särmä44798",156.19237127917702,{"$f":"AVERAGE(IF(H$1:PP$1=\"Pisteet\",H43:PP43))","v":78.096185639588512},"Jämin Syyskisa","Ilona Suutari","DS2",156.19237127917702,"Kyllä","Kyllä",null,null,null,null,null,null,"2022-08-25","uros",26,"x","Sukutaulu","https://www.trekkhundregisteret.no/dog/65963-sarma-sonja-pasi-heinonen/","Näytä tiedot"]
["Soul’n Mate Xxl","Soul’n Mate Xxl43546",146.84614785733052,{"$f":"AVERAGE(IF(H$1:PP$1=\"Pisteet\",H44:PP44))","v":73.423073928665261},"Jämin Syyskisa","Kirsi Järvenpää","DR4",146.84614785733052,"Kyllä","Kyllä",null,null,null,null,null,null,"2019-03-22","uros",26.5,"siperianhusky ","Sukutaulu","https://jalostus.kennelliitto.fi/frmKoira.aspx?RekNo=FI29877/19","Näytä tiedot"]
["Wintry Hulivili","Wintry Hulivili44483",146.84614785733052,{"$f":"AVERAGE(IF(H$1:PP$1=\"Pisteet\",H45:PP45))","v":73.423073928665261},"Jämin Syyskisa","Kirsi Järvenpää","DR4",146.84614785733052,"Ei","Kyllä",null,null,null,null,null,null,"2021-10-14","uros",26,"siperianhusky ","Sukutaulu","https://jalostus.kennelliitto.fi/frmKoira.aspx?RekNo=FI61676/21","Näytä tiedot"]
["Kielonkukan Rosemary","Kielonkukan Rosemary43978",145.56569936702221,{"$f":"AVERAGE(IF(H$1:PP$1=\"Pisteet\",H46:PP46))","v":72.782849683511103},"Jämin Syyskisa","Elisa Tuisku","DR4",145.56569936702221,"Kyllä","Kyllä",null,null,null,null,null,null,"2020-05-27","narttu",19.5,"siperianhusky ","Sukutaulu","https://jalostus.kennelliitto.fi/frmKoira.aspx?RekNo=FI34502/20&R=270","Näytä tiedot"]
["Lumikirsun Fantsu Fiona","Lumikirsun Fantsu Fiona45158",145.56569936702221,{"$f":"AVERAGE(IF(H$1:PP$1=\"Pisteet\",H47:PP47))","v":72.782849683511103},"Jämin Syyskisa","Elisa Tuisku","DR4",145.56569936702221,"Kyllä","Kyllä",null,null,null,null,null,null,"2023-08-20","narttu",17.5,"siperianhusky ","Sukutaulu","https://jalostus.kennelliitto.fi/frmKoira.aspx?RekNo=FI44120/23&R=270","Näytä tiedot"]
["Lumikirsun Fantsu Fredi","Lumikirsun Fantsu Fredi45158",145.56569936702221,{"$f":"AVERAGE(IF(H$1:PP$1=\"Pisteet\",H48:PP48))","v":72.782849683511103},"Jämin Syyskisa","Elisa Tuisku","DR4",145.56569936702221,"Ei","Kyllä",null,null,null,null,null,null,"2023-08-20","uros",19.5,"siperianhusky ","Sukutaulu","https://jalostus.kennelliitto.fi/frmKoira.aspx?RekNo=FI44123%2F23&R=270","Näytä tiedot"]
["Skyline Creak's Endless Echo","Skyline Creak's Endless Echo44032",145.56569936702221,{"$f":"AVERAGE(IF(H$1:PP$1=\"Pisteet\",H49:PP49))","v":72.782849683511103},"Jämin Syyskisa","Elisa Tuisku","DR4",145.56569936702221,"Ei","Kyllä",null,null,null,null,null,null,"2020-07-20","uros",23,"siperianhusky ","Sukutaulu","https://jalostus.kennelliitto.fi/frmKoira.aspx?RekNo=FI43156/20&R=270","Näytä tiedot"]
["My Flaming Dreamaker","My Flaming Dreamaker43943",142.33358839074134,{"$f":"AVERAGE(IF(H$1:PP$1=\"Pisteet\",H50:PP50))","v":71.16679419537067},"Jämin Syyskisa","Sini Riihelä","DR4",142.33358839074134,"Kyllä","Kyllä",null,null,null,null,null,null,"2020-04-22","narttu",18,"siperianhusky ","Sukutaulu","https://jalostus.kennelliitto.fi/frmKoira.aspx?RekNo=FI31859/20&R=270","Näytä tiedot"]
["My Flaming Dreamtale","My Flaming Dreamtale43943",142.33358839074134,{"$f":"AVERAGE(IF(H$1:PP$1=\"Pisteet\",H51:PP51))","v":71.16679419537067},"Jämin Syyskisa","Sini Riihelä","DR4",142.33358839074134,"Ei","Kyllä",null,null,null,null,null,null,"2020-04-22","uros",22,"siperianhusky ","Sukutaulu","https://jalostus.kennelliitto.fi/frmKoira.aspx?RekNo=FI31858%2F20&R=270","Näytä tiedot"]
["My Flaming Powerpuff Blossom","My Flaming Powerpuff Blossom44195",142.33358839074134,{"$f":"AVERAGE(IF(H$1:PP$1=\"Pisteet\",H52:PP52))","v":71.16679419537067},"Jämin Syyskisa","Sini Riihelä","DR4",142.33358839074134,"Kyllä","Kyllä",null,null,null,null,null,null,"2020-12-30","narttu",17,"siperianhusky ","Sukutaulu","https://jalostus.kennelliitto.fi/frmKoira.aspx?RekNo=FI16062/21&R=270","Näytä tiedot"]
["My Flaming Rebel At Heart","My Flaming Rebel At Heart44715",142.33358839074134,{"$f":"AVERAGE(IF(H$1:PP$1=\"Pisteet\",H53:PP53))","v":71.16679419537067},"Jämin Syyskisa","Sini Riihelä","DR4",142.33358839074134,"Ei","Kyllä",null,null,null,null,null,null,"2022-06-03","narttu",17,"siperianhusky ","Sukutaulu","https://jalostus.kennelliitto.fi/frmKoira.aspx?RekNo=FI39254/22&R=270","Näytä tiedot"]
["Lumiikisan Onnellinen Tytti","Lumiikisan Onnellinen Tytti44132",134.95473092095909,{"$f":"AVERAGE(IF(H$1:PP$1=\"Pisteet\",H54:PP54))","v":67.477365460479547},null,null,null,null,null,null,"Jämin Syys-SM","Camilla Backman-Koskinen","DS2",134.95473092095909,"Kyllä","Kyllä","2020-10-28","narttu",25,"siperianhusky ","Sukutaulu","https://jalostus.kennelliitto.fi/frmKoira.aspx?RekNo=FI10983%2F21&R=270","Näytä tiedot"]
["Kivijärven Alma","Kivijärven Alma43423",130.57122736182953,{"$f":"AVERAGE(IF(H$1:PP$1=\"Pisteet\",H55:PP55))","v":65.285613680914764},null,null,null,null,null,null,"Jämin Syys-SM","Ville Väänänen","DS2",130.57122736182953,"Kyllä","Kyllä","2018-11-19","narttu",22,"siperianhusky ","Sukutaulu","https://jalostus.kennelliitto.fi/frmKoira.aspx?RekNo=FI12754/19&R=270","Näytä tiedot"]
["Ritarinkannus","Ritarinkannus43820",130.57122736182953,{"$f":"AVERAGE(IF(H$1:PP$1=\"Pisteet\",H56:PP56))","v":65.285613680914764},null,null,null,null,null,null,"Jämin Syys-SM","Ville Väänänen","DS2",130.57122736182953,"Kyllä","Kyllä","2019-12-21","uros",23,"siperianhusky ","Sukutaulu","https://jalostus.kennelliitto.fi/frmKoira.aspx?RekNo=EJ17119/20&R=270","Näytä tiedot"]
["Lumikiisan Mahtava Nova","Lumikiisan Mahtava Nova43668",124.69109986780626,{"$f":"AVERAGE(IF(H$1:PP$1=\"Pisteet\",H57:PP57))","v":62.345549933903129},"Jämin Syyskisa","Camilla Backman-Koskinen","DS2",124.69109986780626,"Kyllä","Kyllä",null,null,null,null,null,null,"2019-07-22","narttu",22,"siperianhusky ","Sukutaulu","https://jalostus.kennelliitto.fi/frmKoira.aspx?RekNo=FI48042/19&R=270","Näytä tiedot"]
["Tomorrow's Fighter Blossom","Tomorrow's Fighter Blossom44516",104.2209983935883,{"$f":"AVERAGE(IF(H$1:PP$1=\"Pisteet\",H58:PP58))","v":52.110499196794152},"Jämin Syyskisa","Iira Rantametsä","DS2",104.2209983935883,"Kyllä","Kyllä",null,null,null,null,null,null,"2021-11-16","narttu",20,"siperianhusky ","Sukutaulu","https://jalostus.kennelliitto.fi/frmKoira.aspx?RekNo=FI10475%2F22&R=270","Näytä tiedot"]
["ATACIARA MENNINKÄINEN","ATACIARA MENNINKÄINEN44326",102.95552614250703,{"$f":"AVERAGE(IF(H$1:PP$1=\"Pisteet\",H59:PP59))","v":51.477763071253513},"Jämin Syyskisa","Ilpo Hacklin","DS2",102.95552614250703,"Kyllä","Kyllä",null,null,null,null,null,null,"2021-05-10","uros",42,"alaskanmalamuutti\t","Sukutaulu","https://jalostus.kennelliitto.fi/frmKoira.aspx?RekNo=FI34374%2F21&R=243","Näytä tiedot"]
["FROZEN EAR FINAL CHANCE","FROZEN EAR FINAL CHANCE45107",102.95552614250703,{"$f":"AVERAGE(IF(H$1:PP$1=\"Pisteet\",H60:PP60))","v":51.477763071253513},"Jämin Syyskisa","Ilpo Hacklin","DS2",102.95552614250703,"Kyllä","Kyllä",null,null,null,null,null,null,"2023-06-30","uros",40,"alaskanmalamuutti","Sukutaulu","https://jalostus.kennelliitto.fi/frmKoira.aspx?RekNo=FI38136%2F23&R=243","Näytä tiedot"]
["ABSOLUTELY SILVER","ABSOLUTELY SILVER44750",101.06350184354112,{"$f":"AVERAGE(IF(H$1:PP$1=\"Pisteet\",H61:PP61))","v":50.531750921770559},null,null,null,null,null,null,"Jämin Syys-SM","Wilma Hänninen","DS2",101.06350184354112,"Kyllä","Kyllä","2022-07-08","narttu",19,"jakutianlaika","Sukutaulu","https://jalostus.kennelliitto.fi/frmKoira.aspx?RekNo=FI28674/23&R=365","Näytä tiedot"]
["ARTIC TRAVEL BRONZITE","ARTIC TRAVEL BRONZITE44004",101.06350184354112,{"$f":"AVERAGE(IF(H$1:PP$1=\"Pisteet\",H62:PP62))","v":50.531750921770559},null,null,null,null,null,null,"Jämin Syys-SM","Wilma Hänninen","DS2",101.06350184354112,"Kyllä","Kyllä","2020-06-22","narttu",19,"jakutianlaika","Sukutaulu","https://jalostus.kennelliitto.fi/frmKoira.aspx?RekNo=FI19536%2F22&R=365","Näytä tiedot"]
["Kulkijan mahtava malla","Kulkijan mahtava malla44392",99.102778467858315,{"$f":"AVERAGE(IF(H$1:PP$1=\"Pisteet\",H63:PP63))","v":49.551389233929157},"Jämin Syyskisa","Rhianon Rintamäki","DS2",99.102778467858315,"Kyllä","Kyllä",null,null,null,null,null,null,"2021-07-15","narttu",21,"jakutianlaika","Sukutaulu","https://jalostus.kennelliitto.fi/frmKoira.aspx?RekNo=FI53763%2F21&R=365","Näytä tiedot"]
["Slavinja saga","Slavinja saga45249",99.102778467858315,{"$f":"AVERAGE(IF(H$1:PP$1=\"Pisteet\",H64:PP64))","v":49.551389233929157},"Jämin Syyskisa","Rhianon Rintamäki","DS2",99.102778467858315,"Ei","Kyllä",null,null,null,null,null,null,"2023-11-19","narttu",17,"jakutianlaika","Sukutaulu","https://jalostus.kennelliitto.fi/frmKoira.aspx?RekNo=FI19165%2F25&R=365","Näytä tiedot"]